bitfinex/quotes_BTCUSD_20250108
["timestamp","ask_amount","ask_price","bid_price","bid_amount"]
[1736324807816,8.778e-05,95890.0,95889.0,1.57842353]
[1736324808221,8.778e-05,95890.0,95889.0,1.57142353]
[1736324808632,8.778e-05,95890.0,95889.0,1.57842353]
[1736324808976,8.778e-05,95890.0,95889.0,1.57142353]
[1736324811312,8.778e-05,95890.0,95889.0,1.57742353]
[1736324811696,8.778e-05,95890.0,95889.0,1.57142353]
[1736324812218,8.778e-05,95890.0,95889.0,1.57742353]
[1736324812922,8.778e-05,95890.0,95889.0,1.57142353]
[1736324813311,8.778e-05,95890.0,95889.0,1.57742353]
[1736324813750,8.778e-05,95890.0,95889.0,1.57738353]
[1736324814348,8.778e-05,95890.0,95889.0,1.49722353]
[1736324814733,8.778e-05,95890.0,95889.0,1.54838353]
[1736324814933,8.778e-05,95890.0,95889.0,1.55438353]
[1736324815462,8.778e-05,95890.0,95889.0,1.54838353]
[1736324816094,8.778e-05,95890.0,95889.0,1.55438353]
[1736324818044,8.778e-05,95890.0,95889.0,1.01398353]
[1736324818246,8.778e-05,95890.0,95889.0,1.03698353]
[1736324819126,8.778e-05,95890.0,95889.0,1.03098353]
[1736324820147,8.778e-05,95890.0,95889.0,1.07873053]
[1736324820756,8.778e-05,95890.0,95889.0,2.02903053]
[1736324820757,7.8e-07,95890.0,95889.0,2.02903053]
[1736324820965,0.0001208,95922.0,95921.0,0.41752465]
[1736324821180,0.000195,95922.0,95921.0,0.72895939]
[1736324821749,0.000195,95922.0,95921.0,0.66128753]
[1736324822144,0.000195,95922.0,95921.0,0.76128753]
[1736324822758,0.000195,95922.0,95921.0,0.50412753]
[1736324823118,0.000195,95922.0,95921.0,0.52895939]
[1736324823321,0.000195,95922.0,95921.0,0.53395939]
[1736324823935,0.000195,95922.0,95921.0,0.11829539]
[1736324824150,0.081995,95922.0,95921.0,0.17545539]
[1736324824955,0.09601731,95922.0,95921.0,0.17545539]
[1736324825364,0.09601731,95922.0,95921.0,0.17045539]
[1736324825780,0.09601731,95922.0,95921.0,0.17445539]
[1736324826188,0.09601731,95922.0,95921.0,0.17045539]
[1736324826320,0.081995,95922.0,95921.0,0.17045539]
[1736324826533,0.081995,95922.0,95921.0,0.17145539]
[1736324829986,0.290497,95922.0,95921.0,0.17145539]
[1736324830777,0.290497,95922.0,95921.0,0.06718065]
[1736324830976,0.290497,95922.0,95921.0,0.01002065]
[1736324831143,0.290497,95922.0,95921.0,0.06714065]
[1736324831539,0.290497,95922.0,95921.0,0.06614065]
[1736324832418,0.290497,95922.0,95921.0,0.06714065]
[1736324832780,0.290497,95922.0,95921.0,0.06614065]
[1736324833186,0.290497,95922.0,95921.0,0.001]
[1736324833413,0.338497,95922.0,95921.0,0.05812]
[1736324834639,0.338497,95922.0,95921.0,0.05712]
[1736324835191,0.338497,95922.0,95921.0,0.05812]
[1736324835318,0.338447,95922.0,95921.0,0.05812]
[1736324835519,0.338447,95922.0,95921.0,0.05712]
[1736324836409,0.338447,95922.0,95921.0,0.06614065]
[1736324840314,0.3383434,95922.0,95921.0,0.06614065]
[1736324841585,0.1298414,95922.0,95921.0,0.06614065]
[1736324842446,0.3383434,95922.0,95921.0,0.06614065]
[1736324842646,0.3382434,95922.0,95921.0,0.00902065]
[1736324842848,0.3382434,95922.0,95921.0,0.06614065]
[1736324847237,0.1297414,95922.0,95921.0,0.06614065]
[1736324848426,0.1297414,95922.0,95921.0,0.17041539]
[1736324848994,0.0773853,95927.0,95926.0,0.00902065]
[1736324849518,0.0001708,95931.0,95926.0,0.00902065]
[1736324849711,0.0001708,95931.0,95921.0,0.16239474]
[1736324849712,0.208489,95928.0,95927.0,0.00902065]
[1736324849925,0.208486,95930.0,95928.0,0.00902065]
[1736324852454,0.079,95929.0,95928.0,0.00902065]
[1736324854333,0.0789,95929.0,95928.0,0.00902065]
[1736324855508,0.208489,95928.0,95927.0,0.00902065]
[1736324855926,0.208498,95924.0,95921.0,0.05712]
[1736324856486,0.208498,95924.0,95923.0,0.00902065]
[1736324857296,0.208498,95924.0,95923.0,0.06606065]
[1736324858336,0.208498,95924.0,95923.0,0.05704]
[1736324858544,0.208498,95924.0,95923.0,0.06606065]
[1736324859499,0.208498,95924.0,95923.0,0.05704]
[1736324862042,0.04959548,95924.0,95923.0,0.05704]
[1736324862246,0.1284,95924.0,95923.0,0.05704]
[1736324862468,0.1284,95924.0,95915.0,0.00902065]
[1736324862469,0.208515,95916.0,95915.0,0.00902065]
[1736324862628,0.287715,95916.0,95915.0,0.06606065]
[1736324862823,0.208528,95910.0,95889.0,0.1207176]
[1736324863026,0.20852,95914.0,95904.0,0.00902065]
[1736324863250,0.0492,95915.0,95908.0,0.00902065]
[1736324863488,0.208526,95911.0,95909.0,0.05704]
[1736324864030,0.208526,95911.0,95910.0,0.05708]
[1736324864228,0.0492,95915.0,95914.0,0.00902065]
[1736324865799,0.0491,95915.0,95914.0,0.00902065]
[1736324865945,0.04897454,95915.0,95914.0,0.00902065]
[1736324866839,0.01275909,95916.0,95914.0,0.00902065]
[1736324866992,0.01275909,95916.0,95915.0,0.00902065]
[1736324867187,0.208512,95918.0,95915.0,0.00902065]
[1736324867782,0.208512,95918.0,95916.0,0.05708]
[1736324867982,0.208512,95918.0,95917.0,0.00902065]
[1736324868493,0.01270369,95918.0,95917.0,0.00902065]
[1736324868873,0.208502,95923.0,95917.0,0.00902065]
[1736324869074,0.417004,95923.0,95917.0,0.00902065]
[1736324869281,0.208502,95923.0,95921.0,0.00902065]
[1736324870835,0.208502,95923.0,95922.0,0.05708]
[1736324871154,0.208502,95923.0,95922.0,0.06610065]
[1736324871895,0.208402,95923.0,95922.0,0.06610065]
[1736324877956,0.208302,95923.0,95922.0,0.06610065]
[1736324879157,0.2085613,95935.0,95928.0,0.00902065]
[1736324880154,0.01257181,95934.0,95928.0,0.00902065]
[1736324882530,0.208492,95927.0,95925.0,0.00902065]
[1736324882753,0.287092,95927.0,95925.0,0.00902065]
[1736324882924,0.287092,95927.0,95922.0,0.05708]
[1736324882925,0.0786,95927.0,95922.0,0.05708]
[1736324883133,0.208496,95925.0,95922.0,0.05708]
[1736324883294,0.208496,95925.0,95923.0,0.00902065]
[1736324885273,0.208496,95925.0,95923.0,0.00885185]
[1736324886044,0.001,95929.0,95924.0,0.00885185]
[1736324886245,0.001,95929.0,95928.0,0.00885185]
[1736324887045,0.001,95929.0,95928.0,0.11312659]
[1736324887688,0.00095,95929.0,95928.0,0.11312659]
[1736324888818,0.00095,95929.0,95928.0,0.19622659]
[1736324890291,0.00095,95929.0,95928.0,0.19722659]
[1736324892693,0.00095,95929.0,95928.0,0.1972689]
[1736324893090,0.00095,95929.0,95928.0,0.19722659]
[1736324893558,0.00095,95929.0,95928.0,0.11412659]
[1736324894269,0.00095,95929.0,95928.0,0.001]
[1736324894470,0.12543711,95929.0,95928.0,0.058]
[1736324894677,0.12543711,95929.0,95928.0,0.057]
[1736324894910,0.208518,95915.0,95911.0,0.00885185]
[1736324895048,0.208491,95927.0,95908.0,0.00885185]
[1736324895049,0.208531,95909.0,95908.0,0.00885185]
[1736324895269,0.208531,95909.0,95908.0,0.06585185]
[1736324895493,0.208515,95916.0,95915.0,0.00885185]
[1736324896058,0.208515,95916.0,95915.0,0.06585185]
[1736324897174,0.208511,95918.0,95917.0,0.00885185]
[1736324897369,0.208489,95928.0,95925.0,0.00885185]
[1736324897593,0.416978,95928.0,95925.0,0.00885185]
[1736324898736,0.198489,95928.0,95927.0,0.00885185]
[1736324899284,0.198489,95928.0,95927.0,0.06585185]
[1736324899921,0.00095,95929.0,95928.0,0.00885185]
[1736324900164,0.00095,95929.0,95928.0,0.11312659]
[1736324904159,0.00095,95929.0,95928.0,0.11412659]
[1736324905554,0.209437,95929.0,95928.0,0.11312659]
[1736324905765,0.209437,95929.0,95928.0,0.11412659]
[1736324905970,0.00095,95929.0,95928.0,0.11412659]
[1736324906980,0.209437,95929.0,95928.0,0.00985185]
[1736324910369,0.209437,95929.0,95928.0,0.00885185]
[1736324911155,0.209437,95929.0,95928.0,0.06585185]
[1736324925983,0.209437,95929.0,95928.0,0.06581185]
[1736324928324,0.209437,95929.0,95928.0,0.05696]
[1736324928795,0.209437,95929.0,95928.0,0.06581185]
[1736324928978,0.209437,95929.0,95928.0,0.00885185]
[1736324929130,0.209437,95929.0,95928.0,0.05696]
[1736324930097,0.209437,95929.0,95928.0,0.06581185]
[1736324931240,0.00095,95929.0,95928.0,0.06581185]
[1736324932773,0.00095,95929.0,95928.0,0.17008659]
[1736324940507,0.00095,95929.0,95928.0,0.06581185]
[1736324941125,0.00095,95929.0,95928.0,0.05696]
[1736324941432,0.208489,95928.0,95926.0,0.00885185]
[1736324941632,0.208489,95928.0,95927.0,0.05696]
[1736324942031,0.208489,95928.0,95927.0,0.06581185]
[1736324943532,0.00095,95929.0,95927.0,0.06581185]
[1736324943795,0.00095,95929.0,95928.0,0.00885185]
[1736324945948,0.00095,95929.0,95928.0,0.11312659]
[1736324946398,0.00095,95929.0,95928.0,0.12091497]
[1736324947691,0.00095,95929.0,95928.0,0.12191497]
[1736324948284,0.00095,95929.0,95928.0,0.12091497]
[1736324948717,0.00095,95929.0,95928.0,0.12191497]
[1736324952740,0.00095,95929.0,95928.0,0.12295726]
[1736324952942,0.00095,95929.0,95928.0,0.12191497]
[1736324954183,0.00095,95929.0,95928.0,0.11743497]
[1736324956057,0.00095,95929.0,95928.0,0.01764023]
[1736324956539,0.00095,95929.0,95928.0,0.12191497]
[1736324957985,0.00095,95929.0,95928.0,0.12091497]
[1736324958864,0.00095,95929.0,95928.0,0.19651497]
[1736324959061,0.00095,95929.0,95928.0,0.19755729]
[1736324959274,0.00095,95929.0,95928.0,0.34755729]
[1736324959476,0.00095,95929.0,95928.0,0.34651497]
[1736324959886,0.00095,95929.0,95928.0,0.37890547]
[1736324960091,0.00095,95929.0,95928.0,0.34651497]
[1736324960771,0.00095,95929.0,95928.0,0.34951497]
[1736324961148,0.00095,95929.0,95928.0,0.34651497]
[1736324961477,0.00095,95929.0,95928.0,0.38189146]
[1736324961635,0.00095,95929.0,95928.0,0.34951497]
[1736324962260,0.00095,95929.0,95928.0,0.46155262]
[1736324962420,0.00095,95929.0,95928.0,0.49391495]
[1736324962626,0.00095,95929.0,95928.0,0.50551311]
[1736324962939,0.00095,95929.0,95928.0,0.50251311]
[1736324963125,0.00095,95929.0,95928.0,0.50651311]
[1736324963877,0.00095,95929.0,95928.0,0.52337188]
[1736324964092,0.00095,95929.0,95928.0,0.52737188]
[1736324964480,0.00095,95929.0,95928.0,0.52337188]
[1736324964692,0.00095,95929.0,95928.0,0.42337188]
[1736324964925,0.00095,95929.0,95928.0,0.39500955]
[1736324966123,0.00095,95929.0,95928.0,0.28651313]
[1736324966326,0.00095,95929.0,95928.0,0.33939313]
[1736324966645,0.00095,95929.0,95928.0,0.34239313]
[1736324966859,0.00095,95929.0,95928.0,0.33079497]
[1736324967274,0.00095,95929.0,95928.0,0.3393934]
[1736324967473,0.00095,95929.0,95928.0,0.32300659]
[1736324970013,0.00095,95929.0,95928.0,0.32000659]
[1736324970398,0.00095,95929.0,95928.0,0.32200659]
[1736324970824,0.00095,95929.0,95928.0,0.32000659]
[1736324971233,0.00095,95929.0,95928.0,0.32200659]
[1736324972403,0.00095,95929.0,95928.0,0.32000659]
[1736324973032,0.00095,95929.0,95928.0,0.32779497]
[1736324973591,0.00095,95929.0,95928.0,0.32000659]
[1736324973927,0.00095,95929.0,95928.0,0.32979497]
[1736324974131,0.00095,95929.0,95928.0,0.27291497]
[1736324974327,0.00095,95929.0,95928.0,0.27091497]
[1736324974563,0.00095,95929.0,95928.0,0.32779497]
[1736324974767,0.00095,95929.0,95928.0,0.32979497]
[1736324975344,0.00095,95929.0,95928.0,0.32779497]
[1736324975680,0.00095,95929.0,95928.0,0.32200659]
[1736324977052,0.00095,95929.0,95928.0,0.32000659]
[1736324977468,0.00095,95929.0,95928.0,0.32100659]
[1736324977894,0.00095,95929.0,95928.0,0.32000659]
[1736324978267,0.00095,95929.0,95928.0,0.32100659]
[1736324978703,0.00095,95929.0,95928.0,0.32000659]
[1736324979061,0.00095,95929.0,95928.0,0.32100659]
[1736324980844,0.00095,95929.0,95928.0,0.32000659]
[1736324981224,0.00095,95929.0,95928.0,0.32100659]
[1736324981581,0.00095,95929.0,95928.0,0.32779497]
[1736324982012,0.00095,95929.0,95928.0,0.32879497]
[1736324982219,0.00095,95929.0,95928.0,0.32875497]
[1736324982579,0.00095,95929.0,95928.0,0.31996659]
[1736324982786,0.00095,95929.0,95928.0,0.32096659]
[1736324984129,0.00095,95929.0,95928.0,0.31996659]
[1736324984550,0.00095,95929.0,95928.0,0.32875497]
[1736324984899,0.00095,95929.0,95928.0,0.32775497]
[1736324985099,0.00095,95929.0,95928.0,0.32096659]
[1736324986067,0.00095,95929.0,95928.0,0.26412659]
[1736324986268,0.00095,95929.0,95928.0,0.32096659]
[1736324986627,0.00095,95929.0,95928.0,0.32875497]
[1736324987335,0.00095,95929.0,95928.0,0.45186659]
[1736324987536,0.00095,95929.0,95928.0,0.5842593]
[1736324987740,0.00095,95929.0,95928.0,0.53520768]
[1736324987940,0.00095,95929.0,95928.0,0.59204768]
[1736324988149,0.00095,95929.0,95928.0,0.59104768]
[1736324988353,0.00095,95929.0,95928.0,0.5832593]
[1736324988554,0.00095,95929.0,95928.0,0.5920329]
[1736324989152,0.00095,95929.0,95928.0,0.5910329]
[1736324990600,0.00095,95929.0,95928.0,0.5950329]
[1736324991982,0.00095,95929.0,95928.0,0.5910329]
[1736324992394,0.00095,95929.0,95928.0,0.5950329]
[1736324993325,0.00095,95929.0,95928.0,0.3893929]
[1736324993600,0.00095,95929.0,95928.0,0.3641329]
[1736324994485,0.00095,95929.0,95928.0,0.2995193]
[1736324994697,0.00095,95929.0,95928.0,0.2984388]
[1736324994940,0.00095,95929.0,95928.0,0.33173794]
[1736324995376,0.00095,95929.0,95928.0,0.32288609]
[1736324995580,0.00095,95929.0,95928.0,0.12489794]
[1736324996008,0.00095,95929.0,95928.0,0.17396659]
[1736324996387,0.00095,95929.0,95928.0,0.32396659]
[1736324996939,0.00095,95929.0,95928.0,0.31996659]
[1736324997917,0.00095,95929.0,95928.0,0.32296659]
[1736324998256,0.00095,95929.0,95928.0,0.31996659]
[1736324998674,0.00095,95929.0,95928.0,0.32096659]
[1736324999281,0.00095,95929.0,95928.0,0.17096659]
[1736325000406,0.00095,95929.0,95927.0,0.00885185]
[1736325000605,0.06965871,95928.0,95917.0,0.0166232]
[1736325000839,0.208507,95920.0,95912.0,0.0166232]
[1736325001052,0.208507,95920.0,95917.0,0.00885185]
[1736325001248,0.208518,95915.0,95913.0,0.05684]
[1736325001573,0.0767,95914.0,95913.0,0.05684]
[1736325001741,0.208522,95913.0,95907.0,0.00885185]
[1736325001944,0.208522,95913.0,95900.0,7.42e-05]
[1736325001945,0.208546,95902.0,95900.0,0.00892605]
[1736325002146,0.208546,95902.0,95901.0,0.05684]
[1736325002147,0.289946,95902.0,95901.0,0.05684]
[1736325002540,0.337246,95902.0,95901.0,0.05684]
[1736325003554,0.337246,95902.0,95900.0,7.42e-05]
[1736325003790,0.1287,95902.0,95901.0,0.05684]
[1736325004233,0.1287,95902.0,95900.0,7.42e-05]
[1736325004432,0.1287,95902.0,95901.0,0.05684]
[1736325005110,0.1287,95902.0,95901.0,0.001]
[1736325005308,0.1287,95902.0,95901.0,0.05784]
[1736325005718,0.1287,95902.0,95901.0,0.001]
[1736325005924,0.1287,95902.0,95901.0,0.05784]
[1736325006907,0.1287,95902.0,95901.0,0.06669185]
[1736325007129,0.1287,95902.0,95901.0,0.17096659]
[1736325007130,0.0473,95902.0,95901.0,0.17096659]
[1736325007312,0.291431,95909.0,95906.0,0.00885185]
[1736325007975,0.0472,95912.0,95911.0,0.00885185]
[1736325008438,0.0472,95912.0,95911.0,0.11312659]
[1736325008657,0.0829,95918.0,95915.0,0.00885185]
[1736325009552,0.0829,95918.0,95917.0,0.00885185]
[1736325009763,0.0829,95918.0,95917.0,0.11312659]
[1736325010213,0.208504,95921.0,95917.0,0.11312659]
[1736325010950,0.0486,95922.0,95920.0,0.00885185]
[1736325011137,0.0486,95922.0,95921.0,0.0568]
[1736325012798,0.208489,95928.0,95921.0,0.16992659]
[1736325013002,0.208489,95928.0,95922.0,0.10427474]
[1736325013793,0.20836354,95928.0,95922.0,0.10427474]
[1736325015568,0.0491708,95931.0,95928.0,0.00885185]
[1736325015766,7.08e-05,95931.0,95928.0,0.11312659]
[1736325016199,7.08e-05,95931.0,95928.0,0.26312659]
[1736325016392,7.08e-05,95931.0,95928.0,0.34402659]
[1736325017150,7.08e-05,95931.0,95928.0,0.26282574]
[1736325018171,7.08e-05,95931.0,95928.0,0.26582574]
[1736325018592,7.08e-05,95931.0,95928.0,0.32262574]
[1736325018776,7.08e-05,95931.0,95928.0,0.31962574]
[1736325019165,7.08e-05,95931.0,95928.0,0.26282574]
[1736325019390,7.08e-05,95931.0,95928.0,0.31962574]
[1736325020324,7.08e-05,95931.0,95928.0,0.32062574]
[1736325021282,7.08e-05,95931.0,95928.0,0.31962574]
[1736325022123,7.08e-05,95931.0,95928.0,0.32162574]
[1736325026694,7.08e-05,95931.0,95928.0,0.26482574]
[1736325026899,7.08e-05,95931.0,95928.0,0.31962574]
[1736325027215,7.08e-05,95931.0,95928.0,0.32162574]
[1736325027823,7.08e-05,95931.0,95928.0,0.31962574]
[1736325028208,7.08e-05,95931.0,95928.0,0.32162574]
[1736325028860,0.0493,95930.0,95928.0,0.26482574]
[1736325029095,0.0493,95930.0,95928.0,0.16307474]
[1736325029258,0.0493,95930.0,95928.0,0.0588]
[1736325029697,0.0493,95930.0,95928.0,0.0568]
[1736325029882,0.0493,95930.0,95928.0,0.0588]
[1736325030436,0.0493,95930.0,95928.0,0.0568]
[1736325030846,0.0493,95930.0,95928.0,0.0578]
[1736325033318,0.0493,95930.0,95928.0,0.066351]
[1736325033498,7.08e-05,95931.0,95928.0,0.065351]
[1736325033957,7.08e-05,95931.0,95928.0,0.001]
[1736325033958,0.334837,95929.0,95928.0,0.001]
[1736325034158,0.38918461,95929.0,95928.0,0.001]
[1736325034362,0.38918461,95929.0,95918.0,0.0568]
[1736325034559,0.208522,95913.0,95912.0,0.008551]
[1736325034759,0.208522,95913.0,95912.0,0.065351]
[1736325035011,0.333922,95913.0,95912.0,0.0568]
[1736325035310,0.3756257,95913.0,95912.0,0.0568]
[1736325035594,0.208534,95908.0,95906.0,0.008551]
[1736325035796,0.208534,95908.0,95907.0,0.0568]
[1736325036554,0.208534,95908.0,95906.0,0.008551]
[1736325036935,0.208534,95908.0,95907.0,0.05676]
[1736325037809,0.1254,95913.0,95911.0,0.008551]
[1736325038012,0.256701,95923.0,95919.0,0.008551]
[1736325039026,0.465202,95923.0,95919.0,0.008551]
[1736325039227,0.208512,95918.0,95913.0,0.008551]
[1736325039409,0.208529,95910.0,95908.0,0.008551]
[1736325042133,0.417058,95910.0,95907.0,0.05676]
[1736325042336,0.4669138,95910.0,95907.0,0.05676]
[1736325042569,0.4669138,95910.0,95908.0,0.05676]
[1736325043745,0.208529,95910.0,95908.0,0.05676]
[1736325043998,0.0482,95923.0,95908.0,0.05676]
[1736325043999,0.208522,95913.0,95908.0,0.05676]
[1736325044198,0.0815,95917.0,95908.0,0.065311]
[1736325044402,0.208515,95916.0,95908.0,0.065311]
[1736325044967,0.208511,95918.0,95913.0,0.008551]
[1736325045561,0.208511,95918.0,95912.0,0.008551]
[1736325045764,0.208511,95918.0,95913.0,0.05676]
[1736325046373,0.25706239,95918.0,95913.0,0.05676]
[1736325046571,0.04855139,95918.0,95913.0,0.05676]
[1736325046777,0.208513,95917.0,95913.0,0.05676]
[1736325047875,0.417072,95907.0,95900.0,0.0086252]
[1736325048098,0.417072,95907.0,95901.0,0.05676]
[1736325048373,0.0494,95906.0,95901.0,0.065311]
[1736325048581,0.208539,95905.0,95901.0,0.065311]
[1736325048787,0.0494,95906.0,95901.0,0.065311]
[1736325048997,0.49774,95914.0,95901.0,0.065311]
[1736325049214,0.28922,95914.0,95901.0,0.065311]
[1736325049354,0.208531,95909.0,95901.0,0.066311]
[1736325049761,0.208531,95909.0,95903.0,0.008551]
[1736325049976,0.208522,95913.0,95907.0,0.008551]
[1736325050169,0.208522,95913.0,95908.0,0.008551]
[1736325050667,0.0807,95922.0,95909.0,0.10427474]
[1736325050869,0.257299,95924.0,95919.0,0.008551]
[1736325051072,0.257299,95924.0,95920.0,0.05676]
[1736325051669,0.208489,95928.0,95921.0,0.008551]
[1736325052314,0.416979,95928.0,95921.0,0.008551]
[1736325053061,0.208489,95928.0,95921.0,0.008551]
[1736325053254,0.208489,95928.0,95923.0,0.008551]
[1736325053867,7.08e-05,95931.0,95928.0,0.008551]
[1736325054084,7.08e-05,95931.0,95928.0,0.11282574]
[1736325054901,7.08e-05,95931.0,95928.0,0.10427474]
[1736325055544,0.208489,95928.0,95923.0,0.008551]
[1736325055747,7.08e-05,95931.0,95920.0,0.05676]
[1736325055954,7.08e-05,95931.0,95914.0,0.15]
[1736325055955,0.0796,95928.0,95921.0,0.05676]
[1736325056156,0.0796,95928.0,95912.0,0.00775204]
[1736325056157,0.208515,95917.0,95912.0,0.00775204]
[1736325056358,0.208515,95917.0,95913.0,0.16103474]
[1736325057376,0.208515,95917.0,95914.0,0.008551]
[1736325058045,0.208506,95921.0,95914.0,0.008551]
[1736325059738,0.208491,95927.0,95921.0,0.008551]
[1736325060519,0.208489,95928.0,95923.0,0.008551]
[1736325063846,0.416978,95928.0,95923.0,0.008551]
[1736325066303,0.208489,95928.0,95923.0,0.008551]
[1736325069368,7.08e-05,95931.0,95928.0,0.008551]
[1736325069574,7.08e-05,95931.0,95928.0,0.11282574]
[1736325072384,7.08e-05,95931.0,95928.0,0.11482574]
[1736325072937,7.08e-05,95931.0,95928.0,0.11282574]
[1736325073360,7.08e-05,95931.0,95928.0,0.11482574]
[1736325074842,7.08e-05,95931.0,95928.0,0.11282574]
[1736325075226,7.08e-05,95931.0,95928.0,0.11482574]
[1736325077967,7.08e-05,95931.0,95928.0,0.11282574]
[1736325078147,7.08e-05,95931.0,95928.0,0.11482574]
[1736325078670,7.08e-05,95931.0,95928.0,0.11282574]
[1736325079083,7.08e-05,95931.0,95928.0,0.11482574]
[1736325080994,7.08e-05,95931.0,95928.0,0.11282574]
[1736325081185,7.08e-05,95931.0,95928.0,0.11482574]
[1736325081812,7.08e-05,95931.0,95928.0,0.11282574]
[1736325082246,7.08e-05,95931.0,95928.0,0.11382574]
[1736325082645,7.08e-05,95931.0,95928.0,0.11282574]
[1736325084109,7.08e-05,95931.0,95928.0,0.16954574]
[1736325084686,7.08e-05,95931.0,95928.0,0.17054574]
[1736325085502,7.08e-05,95931.0,95928.0,0.16954574]
[1736325085707,7.08e-05,95931.0,95928.0,0.17054574]
[1736325086273,7.08e-05,95931.0,95928.0,0.16954574]
[1736325086482,7.08e-05,95931.0,95928.0,0.17054574]
[1736325087851,7.08e-05,95931.0,95928.0,0.16954574]
[1736325088231,7.08e-05,95931.0,95928.0,0.17054574]
[1736325088795,7.08e-05,95931.0,95928.0,0.16954574]
[1736325088994,7.08e-05,95931.0,95928.0,0.17054574]
[1736325089851,7.08e-05,95931.0,95928.0,0.17829778]
[1736325091846,7.08e-05,95931.0,95928.0,0.18992459]
[1736325092209,7.08e-05,95931.0,95928.0,0.17829778]
[1736325092416,7.08e-05,95931.0,95928.0,0.17729778]
[1736325092617,7.08e-05,95931.0,95928.0,0.17829778]
[1736325094689,7.08e-05,95931.0,95928.0,0.12157778]
[1736325094847,7.08e-05,95931.0,95928.0,0.17729778]
[1736325095314,7.08e-05,95931.0,95928.0,0.17829778]
[1736325095627,7.08e-05,95931.0,95928.0,0.17729778]
[1736325095751,7.08e-05,95931.0,95928.0,0.17687581]
[1736325095955,7.08e-05,95931.0,95928.0,0.17787581]
[1736325097498,7.08e-05,95931.0,95928.0,0.17687581]
[1736325097827,7.08e-05,95931.0,95928.0,0.17787581]
[1736325101549,7.08e-05,95931.0,95928.0,0.17687581]
[1736325101906,7.08e-05,95931.0,95928.0,0.17787581]
[1736325102871,7.08e-05,95931.0,95928.0,0.17687581]
[1736325104008,7.08e-05,95931.0,95928.0,0.25501811]
[1736325104231,7.08e-05,95931.0,95928.0,0.28644078]
[1736325105018,7.08e-05,95931.0,95928.0,0.28744078]
[1736325105426,7.08e-05,95931.0,95928.0,0.28644078]
[1736325105780,7.08e-05,95931.0,95928.0,0.28844078]
[1736325106200,7.08e-05,95931.0,95928.0,0.25397581]
[1736325106613,7.08e-05,95931.0,95928.0,0.25597581]
[1736325106817,7.08e-05,95931.0,95928.0,0.28844606]
[1736325107538,7.08e-05,95931.0,95928.0,0.43844606]
[1736325108153,7.08e-05,95931.0,95928.0,0.43644606]
[1736325108603,7.08e-05,95931.0,95928.0,0.43844606]
[1736325109182,7.08e-05,95931.0,95928.0,0.43644606]
[1736325109380,7.08e-05,95931.0,95928.0,0.43844606]
[1736325109999,7.08e-05,95931.0,95928.0,0.43644606]
[1736325111405,7.08e-05,95931.0,95928.0,0.43844606]
[1736325112012,7.08e-05,95931.0,95928.0,0.43644606]
[1736325112218,7.08e-05,95931.0,95928.0,0.43944606]
[1736325112795,7.08e-05,95931.0,95928.0,0.43644606]
[1736325113160,7.08e-05,95931.0,95928.0,0.43944606]
[1736325114523,7.08e-05,95931.0,95928.0,0.44807899]
[1736325115451,7.08e-05,95931.0,95928.0,0.45107899]
[1736325115852,7.08e-05,95931.0,95928.0,0.44807899]
[1736325116059,7.08e-05,95931.0,95928.0,0.45107899]
[1736325117586,7.08e-05,95931.0,95928.0,0.44807899]
[1736325117931,7.08e-05,95931.0,95928.0,0.45107899]
[1736325118565,7.08e-05,95931.0,95928.0,0.44807899]
[1736325118841,7.08e-05,95931.0,95928.0,0.45107899]
[1736325119400,7.08e-05,95931.0,95928.0,0.52027899]
[1736325119703,7.08e-05,95931.0,95928.0,0.94807899]
[1736325120716,7.08e-05,95931.0,95928.0,0.95107899]
[1736325121335,7.08e-05,95931.0,95928.0,0.94807899]
[1736325121479,7.08e-05,95931.0,95928.0,1.04807899]
[1736325121688,7.08e-05,95931.0,95928.0,1.05207899]
[1736325122295,7.08e-05,95931.0,95928.0,1.04807899]
[1736325122506,7.08e-05,95931.0,95928.0,1.05207899]
[1736325123278,0.0001706,95950.0,95928.0,1.05207899]
[1736325123279,0.0001706,95950.0,95949.0,1.23757303]
[1736325123484,0.0001706,95950.0,95949.0,1.45399802]
[1736325123645,0.0001706,95950.0,95949.0,1.47338299]
[1736325124450,0.00022142,95950.0,95949.0,1.47338299]
[1736325125101,0.00022142,95950.0,95949.0,1.47738299]
[1736325126214,4.2e-07,95950.0,95949.0,1.47738299]
[1736325126978,8.53e-05,95962.0,95955.0,0.56656003]
[1736325127188,0.00067876,95956.0,95955.0,0.83400502]
[1736325127385,7.6e-07,95956.0,95955.0,1.70220502]
[1736325127584,8.53e-05,95967.0,95966.0,0.55812903]
[1736325127784,8.53e-05,95967.0,95966.0,1.76649077]
[1736325127785,0.00013607,95967.0,95966.0,1.76649077]
[1736325128010,0.0451,96007.0,96006.0,0.00812903]
[1736325128243,0.04515079,96007.0,96006.0,0.16908377]
[1736325129153,5.079e-05,96007.0,96006.0,0.16908377]
[1736325129530,5.079e-05,96007.0,96006.0,0.11240377]
[1736325129708,5.079e-05,96007.0,96006.0,0.16904377]
[1736325130534,5.079e-05,96007.0,96006.0,0.11240377]
[1736325130741,5.079e-05,96007.0,96006.0,0.16904377]
[1736325131312,5.079e-05,96007.0,96006.0,0.17004377]
[1736325134403,5.079e-05,96007.0,96006.0,0.17000377]
[1736325139241,5.079e-05,96007.0,96006.0,0.32104527]
[1736325139449,5.079e-05,96007.0,96006.0,0.32000377]
[1736325141694,5.079e-05,96007.0,96006.0,0.26240377]
[1736325142059,5.079e-05,96007.0,96006.0,0.31900377]
[1736325143098,5.079e-05,96007.0,96006.0,0.32300377]
[1736325143750,5.079e-05,96007.0,96006.0,0.31900377]
[1736325143896,5.079e-05,96007.0,96006.0,0.32100377]
[1736325144105,5.079e-05,96007.0,96006.0,0.49840377]
[1736325144303,5.079e-05,96007.0,96006.0,0.49640377]
[1736325144507,5.079e-05,96007.0,96006.0,0.51563274]
[1736325144710,5.079e-05,96007.0,96006.0,0.41563274]
[1736325144912,5.079e-05,96007.0,96006.0,0.35903274]
[1736325145144,5.079e-05,96007.0,96006.0,0.41863274]
[1736325145971,5.079e-05,96007.0,96006.0,0.64163274]
[1736325146741,5.079e-05,96007.0,96006.0,0.63863274]
[1736325146941,5.079e-05,96007.0,96006.0,0.43863274]
[1736325147165,5.079e-05,96007.0,96006.0,0.64363274]
[1736325150936,5.079e-05,96007.0,96006.0,0.63591852]
[1736325151311,5.079e-05,96007.0,96006.0,0.80005587]
[1736325152352,5.079e-05,96007.0,96006.0,0.83222778]
[1736325155110,5.079e-05,96007.0,96006.0,0.82071303]
[1736325158609,5.079e-05,96007.0,96006.0,1.36111303]
[1736325158818,8.53e-05,96025.0,96024.0,0.00812903]
[1736325159160,0.00013607,96025.0,96024.0,0.51059403]
[1736325160327,0.00013607,96025.0,96024.0,0.51159403]